Cogmind - Beta 16.1 @@@ ROGUE MODE // 2026.04.03 @ 14:50:44 Player: star Result: Destroyed by ZC-YDZ(R) with Subdweller Machine Gun Performance ------------- Evolutions (0) 0 Regions Visited (2) 400 Robots Destroyed (29) 145 Value Destroyed (744) 744 Prototype IDs (0) 0 Alien Tech Used (0) 0 Bonus (0) 0 TOTAL SCORE: 1289 Bonus ------- None Cogmind --------- Core Integrity 0/250 Matter 245/300 Energy 88/100 System Corruption 0% Temperature Cool (0) Movement Rolling (150) Ox4 Location -10/Subcaves Parts ------- > --- POWER (1) -------- (None) > --- PROPULSION (2) --- Spiked Treads Subdweller Monowheel > --- UTILITY (2) ------ Huge Storage Unit > --- WEAPON (2) ------- Subdweller Beam Cannon Subdweller Machine Gun > --- INVENTORY (25) --- Light Ion Engine Subdweller Power Source Small Storage Unit Medium Matter Pod (0) Structural Scanner Makeshift Terrain Scan Processor Weapon Shielding Rainbow Chip Subdweller Laser Subdweller Machine Gun SUBCON Basin (Full) Peak State ------------ > --- POWER ------------ Ion Engine > --- PROPULSION ------- Spiked Treads Subdweller Monowheel > --- UTILITY ---------- Huge Storage Unit Structural Scanner > --- WEAPON ----------- Subdweller Machine Gun Light Cannon > --- INVENTORY -------- Light Ion Engine Subdweller Power Source Small Storage Unit Medium Matter Pod Structural Scanner Makeshift Terrain Scan Processor Weapon Shielding Subdweller Laser Subdweller Laser SUBCON Basin [Rating: 29] Favorites ----------- Power Ion Engine Engine Ion Engine Propulsion Spiked Treads Treads Spiked Treads Leg Aluminum Leg Wheel Compact Wheel Utility Structural Scanner Device Structural Scanner Storage Small Storage Unit Protection Weapon Shielding Weapon Light Cannon Energy Cannon Subdweller Beam Cannon Ballistic Gun Subdweller Machine Gun Ballistic Cannon Light Cannon Launcher Grenade Launcher Build | -11 -10 -10 ------- Run | Yrd Mat Sub Slots Evolved . | . . . Power . | . . . Propulsion . | . . . Utility . | . . . Weapon . | . . . Parts Attached 17 | 5 2 10 Power 1 | 1 . . Engine 1 | 1 . . Core . | . . . Reactor . | . . . Propulsion 5 | 2 . 3 Treads 1 | . . 1 Leg 1 | . . 1 Wheel 3 | 2 . 1 Hover . | . . . Flight . | . . . Utility 4 | 1 1 2 Device 1 | . 1 . Storage 2 | 1 . 1 Processor . | . . . Hackware . | . . . Protection 1 | . . 1 Artifact . | . . . Weapon 7 | 1 1 5 Energy Gun . | . . . Energy Cannon 1 | . . 1 Ballistic Gun 3 | 1 . 2 Ballistic Cannon 2 | . . 2 Launcher 1 | . 1 . Special Weapon . | . . . Impact Weapon . | . . . Slashing Weapon . | . . . Piercing Weapon . | . . . Special Melee Weapon . | . . . Unidentified Prototypes . | . . . Parts Lost 6 | . . 6 Power 1 | . . 1 Propulsion 2 | . . 2 Utility 1 | . . 1 Weapon 2 | . . 2 Highest Loss Streak 2 | . . 2 To Critical Strikes . | . . . Average Backups 7 | . 6 8 Power 1 | . 1 1 Propulsion . | . 1 . Utility 3 | . 2 4 Weapon 2 | . . 2 Tool/Special . | . . . Unused Backups 11 | . 1 10 Power 2 | . . 2 Propulsion 1 | . 1 . Utility 4 | . . 4 Weapon 4 | . . 4 Tool/Special . | . . . Average Slot Usage (%) 93 | . 91 94 Engine 12 | . 14 12 Treads 8 | . . 10 Leg 8 | . . 10 Wheel 9 | . 28 5 Device 10 | . 8 11 Storage 13 | . 14 13 Ballistic Gun 12 | . 14 11 Ballistic Cannon 11 | . . 14 Launcher 3 | . 11 1 Peak Build Rating 29 | 5 7 29 Average Rating 17 | 4 6 20 On Entrance 4 | . 5 7 Avg Prop Armor Cover (%) 9 | . . 9 Naked Turns . | . . . Heaviest Build 93 | 11 15 93 Greatest Support 26 | 26 26 26 Greatest Overweight (x) 5 | . . 5 Average Overweight (x) 1 | . . 1 Largest Inventory Capacity 25 | 8 8 25 Average Capacity 16 | 7 8 18 Most Carried 25 | 3 8 25 Average Carried 15 | 1 6 17 Final Capacity 25 | 8 8 25 Final Carried 25 | 3 8 25 Class Distribution -------------------- 100% | Mutant Dominant Class ---------------- Mutant | -10/Materials Mutant | -10/Subcaves Resources | -11 -10 -10 ----------- Run | Yrd Mat Sub Matter Collected 933 | 229 116 588 Remotely . | . . . Salvage Created 609 | . 257 352 Parts 45 | . 16 29 Haulers Intercepted 1 | . 1 . Recyclers Shooed 1 | . 1 . Parts Field Recycled . | . . . Retrieved Matter . | . . . Parts Self-Destructed 9 | . . 9 Prevented . | . . . Parts Restored . | . . . Kills | -11 -10 -10 ------- Run | Yrd Mat Sub Combat Hostiles Destroyed 25 | . 10 15 Guns 5 | . . 5 Cannons 10 | . . 10 AOE 10 | . 10 . Classes Destroyed 8 | . 6 2 Builder 1 | . 1 . Hauler 1 | . 1 . Recycler 1 | . 1 . Operator 1 | . 1 . Swarmer 9 | . 6 3 Grunt 5 | . 4 1 Sentry 1 | . . 1 Subdweller 10 | . . 10 Best Kill Streak 7 | . 7 2 Combat Bots Only 5 | . 5 2 Max Kills in Single Turn 2 | . 2 1 Gunslinging . | . . . Exploded 2 | . 2 . Melee . | . . . Uniques/NPCs Destroyed . | . . . Combat | -11 -10 -10 -------- Run | Yrd Mat Sub Hostile Shots Fired 115 | . 20 95 Missed 37 | . 5 32 Hits 78 | . 15 63 Projectile 78 | . 15 63 Critical Strikes 1 | . . 1 Damage Taken 1201 | . 165 1036 Core 264 | . 54 210 Absorbed by Shields . | . . . Redirected to Shielding 8 | . . 8 Core Remaining (%) 100 | 100 . . Volleys Fired 87 | . 21 66 Largest 2 | . 1 2 Hottest 110 | . 30 110 Shots Fired 150 | . 21 129 Gun 42 | . 4 38 Cannon 89 | . . 89 Launcher 19 | . 17 2 Special . | . . . Kinetic 129 | . 4 125 Thermal 2 | . . 2 Explosive 19 | . 17 2 Electromagnetic . | . . . Robot Hit Streak 17 | . 5 17 Robot Miss Streak 4 | . 3 4 Penetration Max . | . . . Secondary Targets . | . . . Shots Hit Robots 94 | . 10 84 Core Hits 43 | . 20 23 Critical Kills 1 | . . 1 Critical Parts Destroyed . | . . . Critical Strikes 3 | . . 3 Destroy 1 | . . 1 Blast 2 | . . 2 Melee Attacks . | . . . Impact . | . . . Slashing . | . . . Piercing . | . . . Sneak Attacks . | . . . Combat Hostiles . | . . . Follow-up Attacks . | . . . Damage Inflicted 2433 | . 795 1638 Guns 692 | . 18 674 Cannons 923 | . . 923 Explosions 818 | . 777 41 Melee . | . . . Ramming . | . . . Kinetic 1585 | . 18 1567 Thermal 30 | . . 30 Explosive 818 | . 777 41 Electromagnetic . | . . . Impact . | . . . Slashing . | . . . Piercing . | . . . Highest Corruption . | . . . Average Corruption . | . . . Corruption Purged . | . . . Corruption Blocked . | . . . Overload Shots . | . . . Overflow Damage 6 | . 6 . Projectiles . | . . . Explosions 6 | . 6 . Melee . | . . . Knockbacks 15 | . . 15 Impact . | . . . Kinetic 15 | . . 15 Secondary . | . . . Self-Inflicted Damage 54 | . 30 24 Shots 3 | . 2 1 Rammed . | . . . Targets Rammed . | . . . Kicked . | . . . Crushed . | . . . Highest Temperature 11 | . 11 . Average Temperature 4 | . 4 . Received Heat Transfer 204 | . 24 180 Siege Activations . | . . . Martial Activations . | . . . Shielding Activations . | . . . Robots Disrupted . | . . . Combat Hostiles . | . . . Robots Corrupted . | . . . Combat Hostiles . | . . . Parts Fried . | . . . Impact Corruptions . | . . . Robots Melted . | . . . Combat Hostiles . | . . . Parts Melted . | . . . Heat Transferred 37 | . . 37 Parts Sabotaged . | . . . Parts Stolen . | . . . Parts Stripped . | . . . Power Chain Reactions . | . . . Alert | -11 -10 -10 ------- Run | Yrd Mat Sub Maximum Alert Level 1 | . 1 . Low Security (%) 93 | 100 92 . Level 1 6 | . 7 . Level 2 . | . . . Level 3 . | . . . Level 4 . | . . . Level 5 . | . . . High Security . | . . . Max Security . | . . . Peak Influence 212 | . 212 . Initial . | . . . Average 113 | . 125 . Influence Increases 532 | . 342 190 Destroy 0b10 Robot/C 300 | . 200 100 Destroy 0b10 Robot/NC 20 | . 20 . Destroy Leader 42 | . 42 . Disable Machine 15 | . 15 . Destroy Structure 65 | . 65 . Lose Combat Pursuer 90 | . . 90 Influence Decreases 532 | . 192 340 Entered New Map 73 | . . 73 Time Decay 439 | . 192 247 Lost Part 20 | . . 20 Squads Dispatched 2 | . 2 . Investigation 1 | . 1 . Extermination . | . . . Reinforcement 1 | . 1 . Assault . | . . . Garrison . | . . . Intercept . | . . . Searches Triggered . | . . . Construction Impeded . | . . . Haulers Reinforced . | . . . Active Scanning Responses . | . . . Cargo Convoy Interrupts . | . . . Stealth | -11 -10 -10 --------- Run | Yrd Mat Sub Distress Signals 2 | . 2 . Communications Jammed . | . . . Distress Signals . | . . . Times Spotted 41 | . 20 21 Peak Tracking Total 6 | . 6 4 Tactical Retreats 2 | . . 2 Traps | -11 -10 -10 ------- Run | Yrd Mat Sub Traps Triggered 1 | . 1 . Indirectly . | . . . Trap Hack Attempts . | . . . Triggered . | . . . Disarmed . | . . . Reprogrammed . | . . . Reused . | . . . Traps Extracted . | . . . Installed . | . . . Triggered . | . . . Machines | -11 -10 -10 ---------- Run | Yrd Mat Sub Machines Disabled 1 | . 1 . Max in Single Turn 1 | . 1 . Machines Repaired . | . . . Machines Dismantled . | . . . Machines Sabotaged . | . . . Overloaded Fab Kills . | . . . Hacking | -11 -10 -10 --------- Run | Yrd Mat Sub Machines Accessed 3 | . . 3 Terminals . | . . . Fabricators . | . . . Repair Stations . | . . . Recycling Units . | . . . Scanalyzers . | . . . Garrison Access . | . . . Total Hacks 7 | . . 7 Successful 7 | . . 7 Failed . | . . . Catastrophic . | . . . Database Lockouts . | . . . Manual . | . . . Terminals . | . . . Fabricators . | . . . Repair Stations . | . . . Recycling Units . | . . . Scanalyzers . | . . . Garrison Access . | . . . Terminal Hacks 7 | . . 7 Record 5 | . . 5 Open Door 1 | . . 1 Release Object 1 | . . 1 Fabricator Hacks . | . . . Repair Station Hacks . | . . . Recycling Unit Hacks . | . . . Scanalyzer . | . . . Garrison Access Hacks . | . . . Unauthorized Hacks . | . . . Terminals . | . . . Fabricators . | . . . Repair Stations . | . . . Recycling Units . | . . . Scanalyzers . | . . . Garrison Access . | . . . Data Cores Recovered . | . . . Used . | . . . Hacking Detections . | . . . Full Trace Events . | . . . Feedback Events . | . . . Feedback Blocked . | . . . Robot Schematics Acquired . | . . . Robots Built . | . . . Authchips . | . . . Time . | . . . Total Robot Build Rating . | . . . Part Schematics Acquired . | . . . Parts Built . | . . . Authchips . | . . . Time . | . . . Total Part Build Rating . | . . . Part Studies Acquired . | . . . Parts Repaired . | . . . Time . | . . . Parts Recycled . | . . . Recycled Matter . | . . . Retrieved Matter . | . . . Retrieved Components . | . . . Parts Scanalyzed . | . . . Part Schematics Acquired . | . . . Parts Damaged . | . . . Bothacking | -11 -10 -10 ------------ Run | Yrd Mat Sub Used RIF Installer . | . . . Robots Hacked . | . . . Non-combat . | . . . Combat . | . . . Robot Hacks Applied . | . . . Relay Couplers Released . | . . . Fabnet Peak Effective % . | . . . Robots Rewired . | . . . Allies Hacked . | . . . Hacks Repelled . | . . . Allies | -11 -10 -10 -------- Run | Yrd Mat Sub Total Allies . | . . . Largest Group . | . . . Highest-Rated Group . | . . . Highest-Rated Ally . | . . . Total Orders . | . . . Ally Attacks . | . . . Total Damage . | . . . Kills . | . . . Allies Corrupted . | . . . Allies Melted . | . . . Intel | -11 -10 -10 ------- Run | Yrd Mat Sub Active Infowar (turns) 1869 | . 282 1587 Structural 1869 | . 282 1587 Robot Analysis Total . | . . . Derelict Logs Recovered . | . . . Drone Launches . | . . . Drone Recoveries . | . . . Exploration | -11 -10 -10 ------------- Run | Yrd Mat Sub Turns Passed 2448 | 53 477 1918 Spaces Moved 1219 | 50 466 703 Core 5 | 4 . 1 Treads 314 | . . 314 Legs 66 | . . 66 Wheels 834 | 46 466 322 Hover . | . . . Flight . | . . . Fastest Speed 50 | 50 90 90 Average Speed 172 | 86 90 233 Slowest Speed 560 | 90 90 560 Overloaded Moves . | . . . Propulsion Burnouts . | . . . Robots Hopped . | . . . Potential Cave-ins . | . . . Cave-ins Triggered . | . . . Exploration Rate (%) 45 | 3 80 53 Regions Visited 2 Branch Regions 1 Pre-discovered Areas . | . . . Known Exits Taken . | . . . Unknown Exits Taken 2 | 1 1 . Scrap Searched 2 | . . 2 Spaces Dug . | . . . Terrain Destroyed 76 | . 64 12 Melee . | . . . Projectile . | . . . AOE 76 | . 64 12 Terrain Rammed . | . . . Walls Destroyed . | . . . Machines Disabled . | . . . Actions | -11 -10 -10 --------- Run | Yrd Mat Sub Total 1408 | 57 503 848 Wait 55 | . 7 48 Move 1217 | 49 465 703 Hop . | . . . Pick Up 23 | 3 7 13 Fast Attach 8 | 5 1 2 Attach 5 | . 1 4 Detach . | . . . Swap 7 | . . 7 Drop 6 | . 1 5 Fire 87 | . 21 66 Melee . | . . . Ram . | . . . Kick . | . . . Crush . | . . . Escape Stasis . | . . . Rewire . | . . . Trap . | . . . Miscellaneous . | . . . Route ------- -11/Scrapyard -10/Materials (discovered 4 exits: [*Mat x2] / [*Min] / *Sub) -10/Subcaves History --------- Turn | Location | Event 7 | -11/Scrapyard | Discovered new exit (range 16) 54 | -11/Scrapyard | Entered Materials 182 | -10/Materials | Discovered new exit (range 8) 299 | -10/Materials | Discovered new exit (range 6) 308 | -10/Materials | Build established: Mutant 333 | -10/Materials | Discovered new exit (range 12) 526 | -10/Materials | Discovered new exit (range 7) 531 | -10/Materials | Entered Subcaves 555 | -10/Subcaves | Visited Clippyterm 558 | -10/Subcaves | Learned Factory stockpile data 668 | -10/Subcaves | Ambushed by Subdwellers from Twisted Machinery 955 | -10/Subcaves | Shifting Twisted Machinery released Spk. Treads 958 | -10/Subcaves | Shifting Twisted Machinery released Sub. Machine Gun 1150 | -10/Subcaves | Shifting Twisted Machinery released Sub. Beam Cannon 1219 | -10/Subcaves | Found SUBCON Basin 1396 | -10/Subcaves | Core integrity fell below 50% 2231 | -10/Subcaves | A Subdweller sparked back to life 2231 | -10/Subcaves | A Subdweller sparked back to life 2238 | -10/Subcaves | Core integrity fell below 20% 2248 | -10/Subcaves | Found Prototype Processor 2449 | -10/Subcaves | Destroyed by ZC-YDZ(R) with Subdweller Machine Gun Last Messages --------------- 02335_ Acquired 2 matter. 02342_ 37-2Q3(R) affixes Scrap Shield Fragment to Scrap Shield. 02342_ 37-2Q3(R) destroyed. 02349_ Acquired 23 matter. 02352_ Acquired 3 matter. 02354_ Searching scrap... 02354_ Found Sub. Machine Gun. 02354_ Found Sub. Beam Cannon. 02354_ Found 49 Matter. 02355_ Acquired 49 matter. 02355_ Searching scrap... 02355_ Found Sub. Laser. 02355_ Found 36 Matter. 02356_ Acquired 36 matter. 02366_ Dropped Sub. Machine Gun. 02372_ Acquired Sub. Beam Cannon. 02381_ Subatomizers dissect the Sub. Machine Gun. 02384_ Dropped Sub. Laser. 02384_ Acquired Sub. Laser. Map ----- +----------------------------------------------------+ | | | | | | | | | | | | | | | ?????????????????????????????????????????????????? | | ?????????????????????????????????????????????????? | | ?????????????????????????????????????????????????? | | ?????????????????????????????????????????????????? | | ?????????????????????????????????????????????????? | | ????????????????????????????????#????????????????? | | ??????????????????????????????? #????????????????? | | ?????????????????????????????? ?????????????????? | | ?????????????????????????????# ??????????????????? | | ????????????????????????????" ??????????????????? | | ????????????????????????#### ???????????????????? | | ???????????????????????? % ????????????????????? | | ???????????????????????? R##????????????????????? | | ???????????????????????##R #????????????????????? | | ????????????????####?### <###??????????????????? | | ????????######### ### < ###????????????????? | | ???????## ## ## #???????????? | | ???????# ????????? | | ???????# ## @ ????????? | | ##????### # ###### ## #????????? | | ##???# # # #????## #??? ??????????? | | #??## ##### ##??????###?????? ??????????? | | #??# #??# #?????????????????????????????? | | #### ##?# ????????????????????????????? | | ##### ???????????????????????????? | | ### # # #?????????????????????????? | | # ## ####?#?????????????????????????? | | # #### ## #??????????????????????????????? | | # ##?### ## #??????????????????????????????? | | # #???? # ##??????????????????????????????? | | ##????? ???????????????????????????????? | | #??????# ???????????????????????????????? | | ## #???????# ???????????????????????????????? | | # # ##?????? ??????????????????????????????? | | ###?? ???????????????????????????????? | | # #####?? ##?? ???????????????????????????????? | | ?#####??? #?????????????????????????????????????? | | #? ### ????????????????????????????????????????? | | #?? ### ?????????????????????????????????????????? | | #?? ?????????????????????????????????????????? | | ### ## ?????????????????????????????????????????? | | ### ###?????????????????????????????????????????? | | ! " ##?????????????????????????????????????????? | +----------------------------------------------------+ Best States ------------- Heat Dissipation 25 Energy Generation 10 Energy Capacity 250 Matter Stores 300 Matter Capacity 300 Sight Range 16 Terrain Scan Density 10 Weapon Shielding 33 Evasion (%) 44 Recoil Reduction 1 Item Schematics ----------------- None Robot Schematics ------------------ None Fabricated ------------ Nothing Repaired ---------- Nothing Studied --------- None Alien Tech Used ----------------- None Achievements -------------- None Challenges ------------ None Game ------ Seed ProjectionRestorationBrace Manual? 0 Play Time 00:15:31 Cumulative 181.9 hours Start 2026.04.02 @ 17:56:52 End 2026.04.03 @ 14:50:44 Sessions 1 Manual Loads 0 Difficulty Rogue Special Mode None Game No. 308 Rogue 308 Adventurer 0 Explorer 0 Win Type - Total 1 Types 1/0/0/0/0/0/0/0/0/0 Lore% 57 Gallery% 57 Achievement% 41 Wizard Run 0 Options --------- Layout 2 ASCII 0 Keyboard 1 Movement Numpad Keybinds 0 Fullscreen 1 Font 20/SmallcapsGlow Map View 64x51 Zoom Use 0% Tactical HUD 1 Map Filters NONE Filters NONE Steam 1 RUN: 56b70cf9-4437-4b1b-94ff-0aa9308ecca1